lending/lending_fUSD_20250131
["ID","MTS","AMOUNT","RATE_DAILY","PERIOD"]
[351104536,1738338648672,-500.0,0.00016438,2]
[351104537,1738338648681,-801.31,0.00016438,2]
[351104538,1738338648690,-975.6,0.00016438,2]
[351104539,1738338648700,-500.0,0.00016438,2]
[351104540,1738338648709,-948.46,0.00016438,2]
[351104541,1738338648718,-1246.35,0.00016438,2]
[351104542,1738338648727,-500.0,0.00016438,2]
[351104543,1738338648736,-500.0,0.00016438,2]
[351104544,1738338648746,-500.0,0.00016438,2]
[351104545,1738338648755,-501.75,0.00016438,2]
[351104546,1738338648764,-881.12,0.00016438,2]
[351104547,1738338648775,-660.29,0.00016438,2]
[351104548,1738338648784,-500.0,0.00016438,2]
[351104549,1738338648795,-1467.67,0.00016438,2]
[351104550,1738338648804,-885.87,0.00016438,2]
[351104551,1738338648815,-635.45,0.00016438,2]
[351104552,1738338648826,-2346.09,0.00016438,2]
[351104553,1738338648835,-500.0,0.00016438,2]
[351104554,1738338648845,-773.74,0.00016438,2]
[351104555,1738338648854,-795.99,0.00016438,2]
[351104556,1738338648863,-500.0,0.00016438,2]
[351104557,1738338648873,-532.38,0.00016438,2]
[351104558,1738338648882,-500.0,0.00016438,2]
[351104559,1738338648891,-1113.23,0.00016438,2]
[351104560,1738338648902,-500.0,0.00016438,2]
[351104561,1738338648911,-500.0,0.00016438,2]
[351104562,1738338648921,-500.0,0.00016438,2]
[351104563,1738338648930,-502.79,0.00016438,2]
[351104564,1738338648940,-1349.67,0.00016438,2]
[351104565,1738338648949,-1040.18,0.00016438,2]
[351104566,1738338648959,-500.0,0.00016438,2]
[351104567,1738338648968,-500.0,0.00016438,2]
[351104568,1738338648978,-949.66,0.00016438,2]
[351104569,1738338648987,-500.0,0.00016438,2]
[351104570,1738338648996,-500.0,0.00016438,2]
[351104571,1738338649006,-4561.72,0.00016438,2]
[351104572,1738338649014,-500.0,0.00016438,2]
[351104573,1738338649023,-500.0,0.00016438,2]
[351104574,1738338649032,-500.0,0.00016438,2]
[351104575,1738338649042,-526.88,0.00016438,2]
[351104576,1738338649051,-1056.74,0.00016438,2]
[351104577,1738338649060,-1730.07,0.00016438,2]
[351104578,1738338649070,-4561.75,0.00016438,2]
[351104579,1738338649079,-744.59,0.00016438,2]
[351104580,1738338649088,-500.0,0.00016438,2]
[351104581,1738338649097,-1322.58,0.00016438,2]
[351104582,1738338649107,-1100.51,0.00016438,2]
[351104583,1738338649116,-500.0,0.00016438,2]
[351104584,1738338649125,-677.03,0.00016438,2]
[351104585,1738338649136,-500.0,0.00016438,2]
[351104586,1738338649147,-725.47,0.00016438,2]
[351104587,1738338649156,-500.0,0.00016438,2]
[351104588,1738338649166,-1274.38,0.00016438,2]
[351104589,1738338649175,-1034.44,0.00016438,2]
[351104590,1738338649185,-2012.01,0.00016438,2]
[351104591,1738338649194,-500.0,0.00016438,2]
[351104592,1738338649208,-500.0,0.00016438,2]
[351104593,1738338649217,-1754.46,0.00016438,2]
[351104594,1738338649226,-500.0,0.00016438,2]
[351104595,1738338649235,-1985.12,0.00016438,2]
[351104596,1738338649244,-500.0,0.00016438,2]
[351104597,1738338649253,-2372.19,0.00016438,2]
[351104598,1738338649262,-500.0,0.00016438,2]
[351104599,1738338649271,-3448.67,0.00016438,2]
[351104600,1738338649280,-500.0,0.00016438,2]
[351104601,1738338649290,-500.0,0.00016438,2]
[351104602,1738338649299,-500.0,0.00016438,2]
[351104603,1738338649308,-914.13,0.00016438,2]
[351104604,1738338649318,-598.29,0.00016438,2]
[351104605,1738338649330,-623.04,0.00016438,2]
[351104606,1738338649342,-2212.19,0.00016438,2]
[351104607,1738338649352,-1192.91,0.00016438,2]
[351104608,1738338649362,-1904.45,0.00016438,2]
[351104609,1738338649371,-728.08,0.00016438,2]
[351104610,1738338649381,-500.0,0.00016438,2]
[351104611,1738338649391,-1471.34,0.00016438,2]
[351104612,1738338649402,-500.0,0.00016438,2]
[351104613,1738338649411,-679.82,0.00016438,2]
[351104614,1738338649422,-1608.29,0.00016438,2]
[351104615,1738338649432,-500.0,0.00016438,2]
[351104616,1738338649442,-500.0,0.00016438,2]
[351104617,1738338649451,-2636.48,0.00016438,2]
[351104618,1738338649460,-500.0,0.00016438,2]
[351104619,1738338649470,-2706.72,0.00016438,2]
[351104620,1738338649479,-500.0,0.00016438,2]
[351104621,1738338649488,-500.0,0.00016438,2]
[351104622,1738338649498,-2542.46,0.00016438,2]
[351104623,1738338649508,-3402.23,0.00016438,2]
[351104624,1738338649517,-1026.78,0.00016438,2]
[351104625,1738338649526,-500.0,0.00016438,2]
[351104626,1738338649536,-1570.71,0.00016438,2]
[351104627,1738338649545,-500.0,0.00016438,2]
[351104628,1738338649554,-1312.64,0.00016438,2]
[351104629,1738338649564,-740.92,0.00016438,2]
[351104630,1738338649575,-1416.74,0.00016438,2]
[351104631,1738338649585,-500.0,0.00016438,2]
[351104632,1738338649594,-2541.16,0.00016438,2]
[351104633,1738338649604,-500.0,0.00016438,2]
[351104634,1738338649613,-891.73,0.00016438,2]
[351104635,1738338649623,-500.0,0.00016438,2]
[351104636,1738338649633,-1144.6,0.00016438,2]
[351104637,1738338649642,-500.0,0.00016438,2]
[351104638,1738338649653,-1751.5,0.00016438,2]
[351104639,1738338649662,-2931.93,0.00016438,2]
[351104640,1738338649672,-683.31,0.00016438,2]
[351104641,1738338649681,-523.59,0.00016438,2]
[351104642,1738338649692,-1330.66,0.00016438,2]
[351104643,1738338649701,-500.0,0.00016438,2]
[351104644,1738338649711,-1373.29,0.00016438,2]
[351104645,1738338649720,-704.11,0.00016438,2]
[351104646,1738338649730,-3390.64,0.00016438,2]
[351104647,1738338649739,-500.0,0.00016438,2]
[351104648,1738338649749,-1316.45,0.00016438,2]
[351104649,1738338649758,-500.0,0.00016438,2]
[351104650,1738338649767,-524.77,0.00016438,2]
[351104651,1738338649777,-500.0,0.00016438,2]
[351104652,1738338649787,-960.6,0.00016438,2]
[351104653,1738338649796,-4169.59,0.00016438,2]
[351104654,1738338649806,-708.26,0.00016438,2]
[351104655,1738338649815,-540.53,0.00016438,2]
[351104656,1738338649825,-500.0,0.00016438,2]
[351104657,1738338649834,-551.49,0.00016438,2]
[351104658,1738338649844,-500.0,0.00016438,2]
[351104659,1738338649853,-182.6104028,0.00016438,2]
[351104660,1738338649862,-851.64,0.00016438,2]
[351104661,1738338649872,-500.0,0.00016438,2]
[351104662,1738338649881,-2849.16,0.00016438,2]
[351104663,1738338649891,-500.0,0.00016438,2]
[351104664,1738338649903,-516.08,0.00016438,2]
[351104665,1738338649912,-706.85,0.00016438,2]
[351104666,1738338649921,-1264.93,0.00016438,2]
[351104667,1738338649930,-1553.54,0.00016438,2]
[351104668,1738338649940,-500.0,0.00016438,2]
[351104669,1738338649949,-500.0,0.00016438,2]
[351104670,1738338649959,-500.0,0.00016438,2]
[351104671,1738338649967,-599.51,0.00016438,2]
[351104672,1738338649977,-500.0,0.00016438,2]
[351104673,1738338649986,-500.0,0.00016438,2]
[351104674,1738338649995,-1060.85,0.00016438,2]
[351104675,1738338650004,-1828.34,0.00016438,2]
[351104676,1738338650015,-748.79,0.00016438,2]
[351104677,1738338650024,-714.76,0.00016438,2]
[351104678,1738338650033,-7042.19,0.00016438,2]
[351104679,1738338650044,-1515.96,0.00016438,2]
[351104680,1738338650054,-500.0,0.00016438,2]
[351104681,1738338650064,-500.0,0.00016475,2]
[351104682,1738338650074,-1000.0,0.00016475,2]
[351104683,1738338650083,-7796.90842417,0.00016479,2]
[351104684,1738338650092,-2000.0,0.000165,2]
[351104685,1738338650101,-2021.0,0.00016541,2]
[351104686,1738338650110,-441.815,0.00016541,2]
[351104687,1738338650119,-568.0,0.00016541,2]
[351104688,1738338650128,-1866.0,0.00016541,2]
[351104689,1738338650137,-1102.688,0.00016541,2]
[351104690,1738338650146,-1262.025,0.00016541,2]
[351104691,1738338650156,-3908.0,0.00016541,2]
[351104692,1738338650165,-150.0,0.00016541,2]
[351104693,1738338650174,-150.0,0.00016541,2]
[351104694,1738338650183,-1107.0,0.00016541,2]
[351104695,1738338650193,-704.38,0.00016574,2]
[351104696,1738338650202,-569.98,0.00016574,2]
[351104697,1738338650211,-1348.47,0.00016574,2]
[351104698,1738338650221,-619.91,0.00016574,2]
[351104699,1738338650230,-939.75,0.00016574,2]
[351104700,1738338650239,-859.0,0.00016574,2]
[351104701,1738338650248,-1185.99,0.00016574,2]
[351104702,1738338650257,-1591.84,0.00016574,2]
[351104703,1738338650266,-1563.53,0.00016574,2]
[351104704,1738338650275,-2990.6,0.00016574,2]
[351104705,1738338650284,-3879.53,0.00016574,2]
[351104706,1738338650294,-1083.09,0.00016574,2]
[351104707,1738338650303,-500.0,0.00016575,2]
[351104708,1738338650314,-500.0,0.00016575,2]
[351104709,1738338650323,-500.0,0.00016575,2]
[351104710,1738338650336,-457.57970295,0.00016575,2]
[351104711,1738338650345,-500.0,0.00016575,2]
[351104712,1738338650355,-500.0,0.00016575,2]
[351104713,1738338650364,-500.0,0.00016575,2]
[351104714,1738338650373,-500.0,0.00016575,2]
[351104715,1738338650386,-162.223,0.00016575,2]
[351104716,1738338650399,-2854.774,0.00016575,2]
[351104717,1738338650410,-500.0,0.00016575,2]
[351104718,1738338650420,-500.0,0.00016575,2]
[351104719,1738338650429,-621.61998424,0.00016575,2]
[351104720,1738338650439,-500.0,0.00016575,2]
[351104721,1738338650448,-500.0,0.00016575,2]
[351104722,1738338650457,-558.71,0.00016575,2]
[351104723,1738338650466,-500.0,0.00016575,2]
[351104724,1738338650484,-500.0,0.00016575,2]
[351104725,1738338650493,-500.0,0.00016575,2]
[351104726,1738338650502,-696.43,0.00016575,2]
[351104727,1738338650511,-500.0,0.00016575,2]
[351104728,1738338650520,-500.0,0.00016575,2]
[351104729,1738338650530,-578.22,0.00016575,2]
[351104730,1738338650539,-579.92,0.00016575,2]
[351104731,1738338650548,-500.0,0.00016575,2]
[351104732,1738338650557,-500.0,0.00016575,2]
[351104733,1738338650567,-500.0,0.00016575,2]
[351104734,1738338650577,-930.3,0.00016575,2]
[351104735,1738338650586,-500.0,0.00016575,2]
[351104736,1738338650596,-598.05,0.00016575,2]
[351104737,1738338650605,-500.0,0.00016575,2]
[351104738,1738338650614,-345.01648848,0.00016575,2]
[351104739,1738338650623,-658.18,0.00016575,2]
[351104740,1738338650632,-500.0,0.00016575,2]
[351104741,1738338650641,-500.0,0.00016575,2]
[351104742,1738338650651,-240.47634082,0.00016575,2]
[351104743,1738338650660,-500.0,0.00016575,2]
[351104744,1738338650670,-822.54,0.00016575,2]
[351104745,1738338650679,-951.57,0.00016575,2]
[351104746,1738338650688,-500.0,0.00016575,2]
[351104747,1738338650899,-639.82,0.00016575,2]
[351104748,1738338650909,-927.18,0.00016575,2]
[351104749,1738338650918,-500.0,0.00016575,2]
[351104750,1738338650928,-500.0,0.00016575,2]
[351104751,1738338650937,-531.98,0.00016575,2]
[351104752,1738338650946,-625.86482002,0.00016575,2]
[351104753,1738338650956,-500.0,0.00016575,2]
[351104754,1738338650966,-899.2,0.00016575,2]
[351104755,1738338650975,-500.0,0.00016575,2]
[351104756,1738338650984,-500.0,0.00016575,2]
[351104757,1738338650993,-500.0,0.00016575,2]
[351104758,1738338651002,-500.0,0.00016575,2]
[351104759,1738338651011,-500.0,0.00016575,2]
[351104760,1738338651020,-581.99,0.00016575,2]
[351104761,1738338651030,-500.0,0.00016575,2]
[351104762,1738338651039,-500.0,0.00016575,2]
[351104763,1738338651048,-573.36,0.00016575,2]
[351104764,1738338651057,-562.41,0.00016575,2]
[351104765,1738338651067,-500.0,0.00016575,2]
[351104766,1738338651076,-500.0,0.00016575,2]
[351104767,1738338651087,-500.0,0.00016575,2]
[351104768,1738338651097,-591.398539,0.00016575,2]
[351104769,1738338651106,-500.0,0.00016575,2]
[351104770,1738338651116,-500.0,0.00016575,2]
[351104771,1738338651125,-500.0,0.00016575,2]
[351104772,1738338651135,-500.0,0.00016575,2]
[351104773,1738338651144,-234.32488073,0.00016575,2]
[351104774,1738338651153,-500.0,0.00016575,2]
[351104775,1738338651163,-589.01,0.00016575,2]
[351104776,1738338651172,-656.040175,0.00016575,2]
[351104777,1738338651182,-709.44,0.00016575,2]
[351104778,1738338651191,-500.0,0.00016575,2]
[351104779,1738338651200,-500.0,0.00016575,2]
[351104780,1738338651210,-500.0,0.00016575,2]
[351104781,1738338651219,-502.93819703,0.00016575,2]
[351104782,1738338651228,-500.0,0.00016575,2]
[351104783,1738338651238,-500.0,0.00016575,2]
[351104784,1738338651248,-806.42,0.00016575,2]
[351104785,1738338651257,-500.0,0.00016575,2]
[351104786,1738338651266,-500.0,0.00016575,2]
[351104787,1738338651275,-781.42,0.00016575,2]
[351104788,1738338651285,-974.0,0.00016575,2]
[351104789,1738338651294,-500.0,0.00016575,2]
[351104790,1738338651303,-500.0,0.00016575,2]
[351104791,1738338651312,-492.04059987,0.00016575,2]
[351104792,1738338651322,-500.0,0.00016575,2]
[351104793,1738338651333,-500.0,0.00016575,2]
[351104794,1738338651343,-500.0,0.00016575,2]
[351104795,1738338651352,-500.0,0.00016575,2]
[351104796,1738338651361,-500.0,0.00016575,2]
[351104797,1738338651374,-500.0,0.00016575,2]
[351104798,1738338651385,-323.66702339,0.00016575,2]
[351104799,1738338651395,-500.0,0.00016575,2]
[351104800,1738338651406,-500.0,0.00016575,2]
[351104801,1738338651415,-500.0,0.00016575,2]
[351104802,1738338651424,-641.33,0.00016575,2]
[351104803,1738338651433,-500.0,0.00016575,2]
[351104804,1738338651442,-1125.87,0.00016575,2]
[351104805,1738338651452,-500.0,0.00016575,2]
[351104806,1738338651462,-660.93,0.00016575,2]
[351104807,1738338651471,-500.0,0.00016575,2]
[351104808,1738338651480,-500.0,0.00016575,2]
[351104809,1738338651490,-641.92,0.00016575,2]
[351104810,1738338651499,-500.0,0.00016575,2]
[351104811,1738338651512,-500.0,0.00016575,2]
[351104812,1738338651526,-500.0,0.00016575,2]
[351104813,1738338651536,-500.0,0.00016575,2]
[351104814,1738338651546,-925.24,0.00016575,2]
[351104815,1738338651556,-500.0,0.00016575,2]
[351104816,1738338651565,-514.18,0.00016575,2]
[351104817,1738338651574,-500.0,0.00016575,2]
[351104818,1738338651583,-729.37,0.00016575,2]
[351104819,1738338651593,-311.19,0.00016575,2]
[351104820,1738338651602,-500.0,0.00016575,2]
[351104821,1738338651612,-1005.43,0.00016575,2]
[351104822,1738338651621,-500.0,0.00016575,2]
[351104823,1738338651631,-591.65,0.00016575,2]
[351104824,1738338651640,-556.0,0.00016575,2]
[351104825,1738338651651,-655.43,0.00016575,2]
[351104826,1738338651660,-500.0,0.00016575,2]
[351104827,1738338651670,-500.0,0.00016575,2]
[351104828,1738338651679,-500.0,0.00016575,2]
[351104829,1738338651688,-500.0,0.00016575,2]
[351104830,1738338651698,-500.0,0.00016575,2]
[351104831,1738338651707,-887.93,0.00016575,2]
[351104832,1738338651716,-547.63,0.00016575,2]
[351104833,1738338651725,-500.0,0.00016575,2]
[351104834,1738338651735,-500.0,0.00016575,2]
[351104835,1738338651744,-741.38,0.00016575,2]
[351104836,1738338651753,-500.0,0.00016575,2]
[351104837,1738338651762,-500.0,0.00016575,2]
[351104838,1738338651771,-851.56,0.00016575,2]
[351104839,1738338651780,-500.0,0.00016575,2]
[351104840,1738338651791,-672.54,0.00016575,2]
[351104841,1738338651800,-500.0,0.00016575,2]
[351104842,1738338651809,-500.0,0.00016575,2]
[351104843,1738338651818,-991.75,0.00016575,2]
[351104844,1738338651827,-500.0,0.00016575,2]
[351104845,1738338651837,-655.8,0.00016575,2]
[351104846,1738338651846,-500.59,0.00016575,2]
[351104847,1738338651856,-500.0,0.00016575,2]
[351104848,1738338651865,-500.0,0.00016575,2]
[351104849,1738338651874,-802.47,0.00016575,2]
[351104850,1738338651884,-500.0,0.00016575,2]
[351104851,1738338651894,-500.0,0.00016575,2]
[351104852,1738338651905,-500.0,0.00016575,2]
[351104853,1738338651915,-946.89,0.00016575,2]
[351104854,1738338651924,-696.47,0.00016575,2]
[351104855,1738338651933,-742.29,0.00016575,2]
[351104856,1738338651943,-500.0,0.00016575,2]
[351104857,1738338651953,-500.0,0.00016575,2]
[351104858,1738338651963,-1701.78,0.00016575,2]
[351104859,1738338651972,-157.80777744,0.00016575,2]
[351104860,1738338651982,-500.0,0.00016575,2]
[351104861,1738338651991,-743.7,0.00016575,2]
[351104862,1738338652001,-500.0,0.00016575,2]
[351104863,1738338652010,-548.58000397,0.00016575,2]
[351104864,1738338652030,-605.52999603,0.00016575,2]
[351104865,1738338652039,-500.0,0.00016575,2]
[351104866,1738338652048,-941.08,0.00016575,2]
[351104867,1738338652058,-627.44,0.00016575,2]
[351104868,1738338652067,-185.89684117,0.00016575,2]
[351104869,1738338652079,-314.10315883,0.00016575,2]
[351104870,1738338652089,-627.16,0.00016575,2]
[351104871,1738338652098,-500.0,0.00016575,2]
[351104872,1738338652108,-500.0,0.00016575,2]
[351104873,1738338652117,-1326.48,0.00016575,2]
[351104874,1738338652126,-733.34,0.00016575,2]
[351104875,1738338652136,-500.0,0.00016575,2]
[351104876,1738338652144,-1957.01,0.00016575,2]
[351104877,1738338652156,-2575.96,0.00016575,2]
[351104878,1738338652165,-500.0,0.00016575,2]
[351104879,1738338652174,-500.0,0.00016575,2]
[351104880,1738338652183,-500.0,0.00016575,2]
[351104881,1738338652193,-1066.67,0.00016575,2]
[351104882,1738338652202,-500.0,0.00016575,2]
[351104883,1738338652211,-661.35,0.00016575,2]
[351104884,1738338652220,-500.0,0.00016575,2]
[351104885,1738338652230,-801.31,0.00016575,2]
[351104886,1738338652240,-975.6,0.00016575,2]
[351104887,1738338652250,-500.0,0.00016575,2]
[351104888,1738338652259,-948.46,0.00016575,2]
[351104889,1738338652269,-1246.35,0.00016575,2]
[351104890,1738338652279,-507.1039692,0.00016575,2]
[351104891,1738338652289,-500.0,0.00016575,2]
[351104892,1738338652299,-500.0,0.00016575,2]
[351104893,1738338652308,-501.75,0.00016575,2]
[351104894,1738338652318,-881.12,0.00016575,2]
[351104895,1738338652330,-660.29,0.00016575,2]
[351104896,1738338652340,-500.0,0.00016575,2]
[351104897,1738338652354,-1467.67,0.00016575,2]
[351104898,1738338652364,-885.87,0.00016575,2]
[351104899,1738338652375,-635.45,0.00016575,2]
[351104900,1738338652384,-2346.09,0.00016575,2]
[351104901,1738338652394,-500.0,0.00016575,2]
[351104902,1738338652404,-773.74,0.00016575,2]
[351104903,1738338652413,-795.99,0.00016575,2]
[351104904,1738338652423,-426.40879939,0.00016575,2]
[351104905,1738338652432,-532.38,0.00016575,2]
[351104906,1738338652441,-106.97728593,0.00016575,2]
[351104907,1738338652461,-393.02271407,0.00016575,2]
[351104908,1738338652470,-115.50728592,0.00016575,2]
[351104909,1738338652481,-997.72271408,0.00016575,2]
[351104910,1738338652491,-24.37728592,0.00016575,2]
[351104911,1738338652502,-475.62271408,0.00016575,2]
[351104912,1738338652512,-500.0,0.00016575,2]
[351104913,1738338652521,-500.0,0.00016575,2]
[351104914,1738338652532,-502.79,0.00016575,2]
[351104915,1738338652542,-1349.67,0.00016575,2]
[351104916,1738338652551,-1012.05291709,0.00016575,2]
[351104917,1738338652563,-28.12708291,0.00016575,2]
[351104918,1738338652573,-500.0,0.00016575,2]
[351104919,1738338652582,-500.0,0.00016575,2]
[351104920,1738338652592,-671.71867705,0.00016575,2]
[351104940,1738339631357,344.80225952,0.00016438,120]
[351104942,1738339668308,92184.27505722,0.00010137,5]
[351104953,1738339832360,-443.96,0.00010137,2]
[351104954,1738339832371,-150.0,0.00011151,2]
[351104955,1738339832381,-59.85646001,0.00011328,2]
[351104956,1738339832395,-90.14353999,0.00011328,2]
[351104957,1738339832405,-663.42833565,0.00012519,2]
[351104958,1738339832418,-405.20166435,0.00012519,2]
[351104959,1738339832428,-725.16885882,0.00012894,2]
[351104960,1738339832437,-150.0,0.00012894,2]
[351104961,1738339832447,-2045.575851,0.0001389,2]
[351104962,1738339832458,-1000.0,0.00013999,2]
[351104963,1738339832469,-479.0,0.00014,2]
[351104964,1738339832478,-1000.0,0.0001408,2]
[351104965,1738339832488,-1000.0,0.00014243,2]
[351104966,1738339832497,-565.65,0.00014331,2]
[351104967,1738339832507,-1257.52,0.0001437,2]
[351104968,1738339832529,-300.0,0.0001444,2]
[351104969,1738339832539,-5741.32,0.00014441,2]
[351104970,1738339832549,-486.2,0.00014517,2]
[351104971,1738339832560,-1000.0,0.00014533,2]
[351104972,1738339832570,-250.0,0.00014549,2]
[351104973,1738339832580,-150.0,0.00014553,2]
[351104974,1738339832590,-973.14,0.00014558,2]
[351104975,1738339832601,-583.66,0.00014677,2]
[351104976,1738339832611,-1000.0,0.00014741,2]
[351104977,1738339832621,-430.88,0.00014741,2]
[351104978,1738339832630,-150.0,0.00014741,2]
[351104979,1738339832640,-1124.96,0.00014741,2]
[351104980,1738339832650,-949.01,0.00014755,2]
[351104981,1738339832660,-1068.63,0.00014783,2]
[351104982,1738339832670,-200.0,0.00014794,2]
[351104983,1738339832680,-728.92,0.00014854,2]
[351104984,1738339832691,-931.0,0.00015,2]
[351104985,1738339832701,-500.0,0.00015,2]
[351104986,1738339832711,-200.0,0.00015088,2]
[351104987,1738339832722,-150.0,0.00015148,2]
[351104988,1738339832733,-23900.0,0.00015149,2]
[351104989,1738339832743,-168.53,0.00015183,2]
[351104990,1738339832752,-150.0,0.00015314,2]
[351104991,1738339832763,-237.37,0.00015401,2]
[351104992,1738339832793,-833.11,0.00015492,2]
[351104993,1738339832804,-159.4,0.00015618,2]
[351104994,1738339832815,-2250.0,0.0001579,2]
[351104995,1738339832825,-367.0,0.00015813,2]
[351104996,1738339832835,-312.3884,0.00016,2]
[351104997,1738339832845,-1019.8224,0.00016,2]
[351104998,1738339832854,-9413.1567,0.000161,2]
[351104999,1738339832864,-561.7345,0.000161,2]
[351105000,1738339832873,-1000.0,0.000161,2]
[351105001,1738339832884,-13132.9869,0.000161,2]
[351105002,1738339832896,-2008.5355,0.00016138,2]
[351105003,1738339832905,-31607.3292,0.00016238,2]
[351105004,1738339832916,-279.4361,0.00016238,2]
[351105005,1738339832926,-1000.0,0.00016323,2]
[351105006,1738339832935,-7029.13498675,0.00016338,2]
[351105007,1738339832946,-33337.7963,0.00016338,2]
[351105008,1738339832957,-524.9911,0.00016338,2]
[351105009,1738339832966,-17352.5397,0.00016338,2]
[351105010,1738339832976,-5000.0,0.00016338,2]
[351105011,1738339832986,-316.7422,0.00016338,2]
[351105012,1738339832996,-2500.0,0.00016338,2]
[351105013,1738339833006,-1356.0,0.000164,2]
[351105014,1738339833016,-3726.96,0.000164,2]
[351105015,1738339833026,-21567.29073158,0.0001641,2]
[351105016,1738339833040,-1878.02188424,0.0001641,2]
[351105017,1738339833058,-8683.68384579,0.0001641,2]
[351105018,1738339833069,-18477.98655197,0.0001641,2]
[351105019,1738339833081,-1990.29909972,0.0001641,2]
[351105020,1738339833093,-3015.79147991,0.0001641,2]
[351105021,1738339833105,-315.99917098,0.0001641,2]
[351105022,1738339833118,-536.91058671,0.0001641,2]
[351105023,1738339833130,-469.75367529,0.0001641,2]
[351105024,1738339833156,-8699.66544969,0.0001641,2]
[351105025,1738339833167,-5287.77622118,0.0001641,2]
[351105026,1738339833179,-79882.30087,0.0001641,2]
[351105027,1738339833191,-12529.55240067,0.0001641,2]
[351105028,1738339833201,-387.13341536,0.00016415,2]
[351105029,1738339833211,-3726.96,0.00016428,2]
[351105030,1738339833221,-212.98181737,0.00016438,2]
[351105031,1738339833230,-500.0,0.00016438,2]
[351105032,1738339833240,-202.38720335,0.00016438,2]
[351105033,1738339833250,-664.63,0.00016438,2]
[351105034,1738339833259,-500.0,0.00016438,2]
[351105035,1738339833270,-500.0,0.00016438,2]
[351105036,1738339833279,-500.0,0.00016438,2]
[351105037,1738339833288,-500.0,0.00016438,2]
[351105038,1738339833299,-500.0,0.00016438,2]
[351105039,1738339833308,-500.0,0.00016438,2]
[351105040,1738339833318,-500.0,0.00016438,2]
[351105041,1738339833327,-504.85564013,0.00016438,2]
[351105042,1738339833337,-500.0,0.00016438,2]
[351105043,1738339833346,-500.0,0.00016438,2]
[351105044,1738339833356,-500.0,0.00016438,2]
[351105045,1738339833365,-509.39280079,0.00016438,2]
[351105046,1738339833374,-500.0,0.00016438,2]
[351105047,1738339833384,-824.57,0.00016438,2]
[351105048,1738339833395,-500.0,0.00016438,2]
[351105049,1738339833405,-500.0,0.00016438,2]
[351105050,1738339833414,-500.0,0.00016438,2]
[351105051,1738339833424,-500.0,0.00016438,2]
[351105052,1738339833434,-500.0,0.00016438,2]
[351105053,1738339833443,-674.36,0.00016438,2]
[351105054,1738339833453,-208.82581945,0.00016438,2]
[351105055,1738339833463,-500.0,0.00016438,2]
[351105056,1738339833474,-505.06548253,0.00016438,2]
[351105057,1738339833484,-500.0,0.00016438,2]
[351105058,1738339833494,-500.0,0.00016438,2]
[351105059,1738339833504,-502.72224881,0.00016438,2]
[351105060,1738339833516,-500.0,0.00016438,2]
[351105061,1738339833526,-500.0,0.00016438,2]
[351105062,1738339833536,-500.0,0.00016438,2]
[351105063,1738339833546,-500.0,0.00016438,2]
[351105064,1738339833556,-500.0,0.00016438,2]
[351105065,1738339833565,-500.0,0.00016438,2]